bitfinex/quotes_BTCUSD_20220204
["timestamp","ask_amount","ask_price","bid_price","bid_amount"]
[1643988001851,0.00564788,39336.0,39325.0,0.45512514]
[1643988002154,0.00564788,39336.0,39319.0,1.8]
[1643988002155,0.28602078,39339.0,39317.0,0.78391324]
[1643988002354,0.31854612,39321.0,39317.0,0.78391324]
[1643988002554,0.04991,39335.0,39317.0,0.02090324]
[1643988002555,0.32487658,39334.0,39317.0,0.02090324]
[1643988002799,0.05,39318.0,39300.0,1.25432009]
[1643988002999,0.05,39316.0,39300.0,1.35208009]
[1643988003196,0.02090324,39318.0,39315.0,1.14354481]
[1643988003396,0.02090324,39318.0,39316.0,0.67185658]
[1643988003595,0.02090324,39318.0,39317.0,2.14698]
[1643988003795,0.03741139,39330.0,39315.0,0.34354481]
[1643988003997,0.0432,39337.0,39318.0,0.05]
[1643988004195,0.04248437,39328.0,39320.0,0.34698]
[1643988004397,0.0432,39343.0,39317.0,0.02090324]
[1643988004398,0.0404907,39337.0,39327.0,0.05]
[1643988004598,0.0011,39362.0,39326.0,0.91544993]
[1643988004599,0.0999,39349.0,39336.0,0.05]
[1643988004799,0.0999,39349.0,39337.0,0.22905764]
[1643988005297,0.1001273,39342.0,39339.0,0.34698]
[1643988005497,0.1001273,39342.0,39329.0,0.32487658]
[1643988005498,0.04380693,39341.0,39329.0,0.32487658]
[1643988005699,0.04380693,39341.0,39326.0,0.0503]
[1643988005898,0.04803439,39340.0,39327.0,0.32487658]
[1643988006100,0.04803439,39340.0,39333.0,0.05]
[1643988006101,0.04031142,39340.0,39333.0,0.05]
[1643988006298,0.30185186,39346.0,39329.0,0.32487658]
[1643988006299,4.28e-06,39335.0,39329.0,0.32487658]
[1643988006553,4.28e-06,39335.0,39334.0,0.05]
[1643988006752,4.28e-06,39335.0,39334.0,0.72185658]
[1643988006953,4.28e-06,39335.0,39334.0,1.15051235]
[1643988007151,4.28e-06,39335.0,39334.0,1.10968]
[1643988007354,0.01812634,39346.0,39334.0,1.10968]
[1643988007650,0.35032157,39349.0,39336.0,1.8]
[1643988007651,0.0473627,39343.0,39336.0,1.8]
[1643988007852,0.0473627,39343.0,39334.0,0.7627]
[1643988007853,0.0893189,39345.0,39337.0,0.63230818]
[1643988008052,0.03802505,39354.0,39337.0,0.34698]
[1643988008250,0.05,39355.0,39335.0,0.28532818]
[1643988008449,0.00669377,39353.0,39335.0,0.28532818]
[1643988008651,0.00030558,39347.0,39335.0,0.28532818]
[1643988008851,0.00030558,39347.0,39336.0,0.34698]
[1643988009051,5.58e-06,39347.0,39346.0,0.05]
[1643988009254,5.58e-06,39347.0,39346.0,0.72550818]
[1643988009457,0.02634132,39370.0,39347.0,1.8]
[1643988009458,0.04451489,39369.0,39347.0,1.8]
[1643988009652,0.0011,39381.0,39347.0,1.8]
[1643988009653,0.0011,39381.0,39368.0,0.05]
[1643988009851,0.0011,39381.0,39369.0,0.86639417]
[1643988010054,0.0011,39381.0,39370.0,0.34698]
[1643988010330,0.0011,39381.0,39367.0,0.05]
[1643988010514,0.0011,39381.0,39379.0,0.43897474]
[1643988010717,0.0011,39381.0,39380.0,0.34698]
[1643988010915,0.0011,39381.0,39380.0,0.27183]
[1643988011116,0.3,39393.0,39370.0,0.05]
[1643988011318,0.12093634,39415.0,39371.0,0.28532818]
[1643988011319,0.29921464,39385.0,39371.0,0.28532818]
[1643988011519,0.29921464,39385.0,39372.0,0.05]
[1643988011717,0.25309088,39389.0,39372.0,0.05]
[1643988011914,0.05,39394.0,39380.0,0.37195443]
[1643988012116,0.00700811,39395.0,39380.0,0.37195443]
[1643988012315,0.00700811,39395.0,39371.0,0.02135361]
[1643988012521,0.04991,39387.0,39371.0,0.02135361]
[1643988012723,0.00716484,39395.0,39356.0,0.27770526]
[1643988012914,0.02135361,39372.0,39363.0,0.05]
[1643988013118,0.02135361,39372.0,39365.0,0.05]
[1643988013314,0.02135361,39372.0,39371.0,0.34698]
[1643988013517,0.00092716,39370.0,39365.0,0.34698]
[1643988013715,0.00092716,39370.0,39366.0,0.62468526]
[1643988013915,7.16e-06,39370.0,39369.0,2.34080964]
[1643988014145,0.02135361,39372.0,39369.0,2.14698]
[1643988014146,0.02043361,39372.0,39369.0,2.14698]
[1643988014347,0.00370799,39377.0,39370.0,0.27770526]
[1643988014548,0.02117344,39384.0,39371.0,0.34698]
[1643988014750,0.19384928,39373.0,39372.0,0.34508]
[1643988014950,0.19384928,39373.0,39369.0,0.37755961]
[1643988015147,0.19384928,39373.0,39360.0,0.01808327]
[1643988015148,0.32932688,39368.0,39360.0,0.01712327]
[1643988015352,0.19384928,39373.0,39360.0,0.01712327]
[1643988015547,0.346719,39372.0,39360.0,0.01662327]
[1643988015748,0.11992344,39384.0,39361.0,1.8]
[1643988016054,0.11992344,39384.0,39349.0,0.01923934]
[1643988016055,2.12653322,39383.0,39349.0,0.01923934]
[1643988016250,0.01662327,39361.0,39350.0,0.05]
[1643988016850,0.01662327,39361.0,39349.0,0.01923934]
[1643988017247,0.27653322,39374.0,39350.0,1.2]
[1643988017448,0.09875,39374.0,39371.0,0.00150422]
[1643988017649,0.09875,39374.0,39352.0,0.05]
[1643988017650,0.3686394,39361.0,39360.0,0.01662327]
[1643988017898,0.05,39380.0,39361.0,1.79628]
[1643988017899,0.0573597,39380.0,39361.0,1.79628]
[1643988018097,0.12808127,39398.0,39378.0,0.05]
[1643988018098,0.27653322,39397.0,39378.0,0.05]
[1643988018294,0.001,39398.0,39379.0,0.346801]
[1643988018295,0.05,39395.0,39379.0,0.346801]
[1643988018496,0.001,39398.0,39384.0,0.05]
[1643988018695,0.001,39398.0,39380.0,0.27653322]
[1643988018696,0.25717,39397.0,39396.0,0.5]
[1643988018898,0.002,39409.0,39408.0,0.46973869]
[1643988019094,0.0072686,39431.0,39399.0,1.62653322]
[1643988019396,0.001,39418.0,39413.0,0.049]
[1643988019597,0.08421,39432.0,39417.0,0.048]
[1643988019598,0.002,39428.0,39417.0,0.048]
[1643988019895,0.002,39429.0,39420.0,0.12104045]
[1643988020097,0.02621,39432.0,39421.0,1.97333422]
[1643988020295,0.02621,39432.0,39424.0,0.05]
[1643988020499,0.001,39435.0,39425.0,0.62333422]
[1643988020696,1.8,39434.0,39408.0,0.00313241]
[1643988020901,1.8,39434.0,39384.0,0.24035163]
[1643988020902,0.37665261,39410.0,39401.0,0.27653322]
[1643988021095,1.8,39433.0,39396.0,0.0432]
[1643988021096,0.001,39416.0,39396.0,0.0432]
[1643988021296,0.001,39416.0,39396.0,0.05]
[1643988021563,0.001,39416.0,39401.0,1.0]
[1643988021746,0.001,39416.0,39404.0,1.0]
[1643988021947,0.001,39416.0,39403.0,0.05]
[1643988021948,0.001,39416.0,39406.0,1.0]
[1643988022144,0.36726921,39431.0,39406.0,1.0]
[1643988022145,0.05,39429.0,39414.0,0.346221]
[1643988022349,0.00057,39435.0,39415.0,0.32653322]
[1643988022545,0.00057,39435.0,39420.0,0.05]
[1643988022748,0.00057,39435.0,39434.0,0.34165931]
[1643988022944,0.00057,39435.0,39422.0,0.05]
[1643988022945,0.00057,39435.0,39423.0,0.27653322]
[1643988023150,0.00057,39435.0,39417.0,0.27653322]
[1643988023449,0.00057,39435.0,39409.0,0.27653322]
[1643988023648,0.00057,39435.0,39410.0,1.27653322]
[1643988023849,0.10362852,39442.0,39415.0,0.34846124]
[1643988023850,0.57214517,39442.0,39415.0,0.34846124]
[1643988024048,0.57214517,39442.0,39417.0,0.02006314]
[1643988024049,0.05071829,39442.0,39417.0,0.02006314]
[1643988024256,0.04699977,39442.0,39428.0,0.05]
[1643988024451,0.28333872,39440.0,39429.0,0.27653322]
[1643988024658,0.75372238,39480.0,39424.0,1.8]
[1643988024860,0.03841432,39491.0,39444.0,0.05]
[1643988024861,0.5891947,39484.0,39444.0,0.05]
[1643988025057,0.13339116,39500.0,39437.0,1.8]
[1643988025058,1.274564,39512.0,39466.0,0.05]
[1643988025314,1.274564,39512.0,39462.0,1.8]
[1643988025315,0.2579116,39505.0,39481.0,0.05]
[1643988025517,0.2579116,39505.0,39482.0,0.31973322]
[1643988025518,0.48743911,39505.0,39482.0,0.31973322]
[1643988025717,0.48743911,39505.0,39488.0,0.05]
[1643988025911,0.48743911,39505.0,39483.0,0.7]
[1643988025912,0.346221,39504.0,39491.0,0.05]
[1643988026212,0.346221,39504.0,39489.0,0.27553322]
[1643988026213,0.54319604,39498.0,39489.0,0.0432]
[1643988026414,2.33370322,39497.0,39480.0,0.0432]
[1643988026610,2.33370322,39497.0,39473.0,0.01952602]
[1643988026611,2.43245322,39497.0,39473.0,0.01952602]
[1643988026813,0.1499,39494.0,39476.0,0.05]
[1643988027014,0.25717,39493.0,39477.0,0.27653322]
[1643988027210,0.25717,39493.0,39488.0,0.04436394]
[1643988027211,0.23047,39493.0,39488.0,0.04436394]
[1643988027413,0.346221,39492.0,39473.0,0.01952602]
[1643988027616,0.346221,39492.0,39471.0,0.0432]
[1643988027620,3.96756048,39491.0,39471.0,0.0432]
[1643988027815,3.96756048,39491.0,39448.0,0.05297055]
[1643988027816,0.00563606,39485.0,39448.0,0.05297055]
[1643988028012,2.16941365,39490.0,39448.0,0.05297055]
[1643988028013,0.35830944,39450.0,39448.0,0.05297055]
[1643988028218,0.002,39473.0,39448.0,7.055e-05]
[1643988028219,2.43891428,39449.0,39448.0,7.055e-05]
[1643988028416,0.346221,39449.0,39436.0,0.02339]
[1643988028617,0.05,39461.0,39438.0,0.346221]
[1643988028814,0.002,39473.0,39436.0,0.02339]
[1643988028815,0.00939753,39473.0,39436.0,0.02339]
[1643988029078,0.33563827,39443.0,39436.0,0.02339]
[1643988029278,0.389421,39442.0,39436.0,0.02339]
[1643988029479,0.00093023,39451.0,39436.0,0.02339]
[1643988029677,0.00093023,39451.0,39439.0,0.09436394]
[1643988029881,0.00093023,39451.0,39441.0,0.09436394]
[1643988030083,0.00093023,39451.0,39436.0,0.02339]
[1643988030084,0.30074169,39451.0,39436.0,0.02339]
[1643988030282,0.05,39460.0,39442.0,0.43070352]
[1643988030484,0.0999,39467.0,39442.0,0.43070352]
[1643988030485,0.0999,39467.0,39456.0,0.2]
[1643988030684,0.002,39473.0,39467.0,1.65]
[1643988030893,0.002,39473.0,39457.0,0.76023]
[1643988030894,0.00188,39473.0,39457.0,0.76023]
[1643988031081,0.00188,39473.0,39464.0,0.04436394]
[1643988031082,0.20029506,39473.0,39464.0,0.04436394]
[1643988031279,0.20023506,39473.0,39464.0,0.04436394]
[1643988031479,0.00164,39473.0,39468.0,0.35089407]
[1643988031682,0.32321415,39473.0,39469.0,0.346163]
[1643988031879,0.04994,39482.0,39472.0,1.84436394]
[1643988032083,0.25587,39482.0,39473.0,0.27653322]
[1643988032284,0.09869,39492.0,39473.0,0.62269622]
[1643988032484,0.1835378,39489.0,39485.0,0.04436394]
[1643988032681,0.2821078,39489.0,39476.0,0.04436394]
[1643988032893,0.2821078,39489.0,39437.0,0.58586789]
[1643988032894,0.27653322,39488.0,39486.0,0.63041783]
[1643988033096,0.27653322,39488.0,39486.0,0.25033383]
[1643988033097,0.03255922,39488.0,39486.0,0.25033383]
[1643988033693,0.39116709,39487.0,39486.0,0.24958379]
[1643988033896,0.39116709,39487.0,39466.0,0.04436394]
[1643988033897,0.09875,39487.0,39480.0,0.44418694]
[1643988034093,0.09875,39487.0,39482.0,0.04436394]
[1643988034295,0.00030285,39489.0,39480.0,0.44418694]
[1643988034296,2.85e-06,39489.0,39488.0,0.05]
[1643988034596,2.85e-06,39489.0,39488.0,0.346163]
[1643988034795,2.85e-06,39489.0,39488.0,1.105873]
[1643988034994,0.35134677,39490.0,39488.0,0.75971]
[1643988035201,0.06976046,39500.0,39488.0,0.55971]
[1643988035202,0.01968,39494.0,39488.0,0.55971]
[1643988035395,0.01968,39494.0,39493.0,0.346163]
[1643988035596,0.01968,39494.0,39493.0,0.39052694]
[1643988035796,0.01968,39494.0,39493.0,0.5802853]
[1643988036000,0.01968,39494.0,39493.0,0.48592136]
[1643988036294,0.01968,39494.0,39493.0,0.5802853]
[1643988036553,0.0007416,39504.0,39493.0,1.20298152]
[1643988036749,0.001,39507.0,39500.0,2.04436394]
[1643988036956,0.0511,39512.0,39502.0,0.04436394]
[1643988037151,0.02924,39506.0,39494.0,0.09436394]
[1643988037357,0.27653322,39505.0,39488.0,0.55971]
[1643988037554,0.0002975,39502.0,39488.0,0.55971]
[1643988037755,0.0003,39501.0,39497.0,0.15]
[1643988037951,0.0003,39501.0,39498.0,0.346163]
[1643988038153,0.0003,39501.0,39488.0,0.55971]
[1643988038154,0.0999,39526.0,39521.0,4.66957944]
[1643988038355,0.0999,39526.0,39521.0,4.28982044]
[1643988038752,0.0035,39528.0,39521.0,4.28782044]
[1643988038954,0.003,39528.0,39521.0,4.28782044]
[1643988039153,0.003,39528.0,39526.0,0.03936394]
[1643988039352,0.003,39528.0,39526.0,0.02936394]
[1643988039558,0.0015,39532.0,39527.0,1.35]
[1643988039856,0.0015,39532.0,39531.0,0.02936394]
[1643988040052,0.001,39532.0,39531.0,0.02936394]
[1643988040333,0.001,39536.0,39531.0,0.02936394]
[1643988040334,0.12617,39570.0,39533.0,1.8]
[1643988040521,0.253094,39587.0,39533.0,1.8]
[1643988040522,0.29313198,39595.0,39564.0,1.8]
[1643988040718,0.00371701,39609.0,39564.0,1.8]
[1643988040719,0.02063606,39632.0,39583.0,1.87936394]
[1643988040914,0.02,39640.0,39595.0,0.03911984]
[1643988040915,0.247827,39607.0,39595.0,0.03911984]
[1643988041115,0.247827,39607.0,39585.0,1.00752118]
[1643988041116,0.17640716,39607.0,39585.0,1.00752118]
[1643988041315,0.17640716,39607.0,39578.0,0.05]
[1643988041316,0.2,39604.0,39586.0,0.037444]
[1643988041516,0.189507,39630.0,39588.0,1.25]
[1643988041713,0.189507,39630.0,39596.0,1.0]
[1643988041915,0.05,39622.0,39605.0,0.999]
[1643988042118,0.05,39622.0,39598.0,0.26667322]
[1643988042316,0.00414358,39593.0,39588.0,0.02105606]
[1643988042509,0.15648375,39590.0,39588.0,0.11506019]
[1643988042710,0.15648375,39590.0,39576.0,0.31667638]
[1643988042711,0.17809016,39577.0,39570.0,0.4]
[1643988042916,0.17645651,39577.0,39576.0,0.09503203]
[1643988043214,0.17645651,39577.0,39565.0,0.27653322]
[1643988043215,0.1653428,39576.0,39565.0,0.27653322]
[1643988043417,0.02105606,39589.0,39542.0,0.6212]
[1643988043418,0.02105606,39589.0,39575.0,0.05]
[1643988043419,0.38716114,39586.0,39575.0,0.05]
[1643988043609,0.1499,39607.0,39585.0,0.01163805]
[1643988043610,0.05,39607.0,39585.0,0.01163805]
[1643988043818,0.05,39607.0,39559.0,0.05]
[1643988043819,1.048e-05,39623.0,39605.0,0.01163805]
[1643988044059,1.048e-05,39623.0,39605.0,0.27653322]
[1643988044262,3.07059137,39643.0,39605.0,0.27653322]
[1643988044263,0.16334132,39625.0,39605.0,0.27653322]
[1643988044557,0.045,39626.0,39601.0,0.06163805]
[1643988044558,0.37158091,39611.0,39601.0,0.06163805]
[1643988044759,0.3,39611.0,39602.0,0.75746]
[1643988045056,0.05,39620.0,39602.0,0.378583]
[1643988045356,0.05,39620.0,39603.0,0.27240522]
[1643988045357,0.048,39620.0,39603.0,0.27240522]
[1643988045559,0.048,39620.0,39574.0,0.06163805]
[1643988045560,0.1927897,39580.0,39574.0,0.06163805]
[1643988045757,0.063157,39605.0,39580.0,0.10200098]
[1643988045955,0.063157,39605.0,39588.0,0.03211991]
[1643988045956,0.02105,39589.0,39588.0,0.03211991]
[1643988046154,0.02105,39589.0,39588.0,1.85025631]
[1643988046357,0.05,39599.0,39588.0,1.85025631]
[1643988046556,3.72702629,39643.0,39599.0,1.8]
[1643988046759,0.5023383,39666.0,39598.0,0.10539601]
[1643988046760,0.0197383,39666.0,39640.0,2.02]
[1643988046960,0.005,39693.0,39649.0,0.03211991]
[1643988046961,0.05,39668.0,39649.0,0.03211991]
[1643988047157,0.001,39661.0,39658.0,0.03211991]
[1643988047365,0.001,39661.0,39652.0,0.18081721]
[1643988047366,0.00092905,39654.0,39652.0,0.18081721]
[1643988047567,0.01357829,39660.0,39654.0,0.45]
[1643988047839,0.17864532,39655.0,39643.0,0.09839376]
[1643988048038,0.09174976,39649.0,39642.0,0.025]
[1643988048238,0.09174976,39649.0,39634.0,0.48586789]
[1643988048239,0.76982462,39647.0,39634.0,0.13846723]
[1643988048439,0.344355,39647.0,39617.0,1.8]
[1643988048636,0.27653322,39646.0,39637.0,0.04158089]
[1643988048842,0.05,39638.0,39610.0,0.0432]
[1643988049040,0.05,39635.0,39603.0,3.90718772]
[1643988049236,0.42323498,39614.0,39604.0,0.27653322]
[1643988049439,0.01979496,39643.0,39616.0,0.72098149]
[1643988049636,0.1004456,39655.0,39624.0,1.8]
[1643988049637,0.0005456,39655.0,39624.0,1.8]
[1643988049837,0.0005456,39655.0,39654.0,0.05]
[1643988050036,0.0005456,39655.0,39654.0,0.394355]
[1643988050236,0.0010912,39655.0,39654.0,0.77398038]
[1643988050445,0.0010912,39655.0,39654.0,0.77560062]
[1643988050446,0.01870179,39655.0,39654.0,0.77560062]
[1643988050639,2.50741222,39677.0,39655.0,1.3]
[1643988050640,1.87691247,39677.0,39655.0,1.3]
[1643988050838,0.045,39671.0,39658.0,0.04585052]
[1643988051045,0.045,39671.0,39654.0,0.75653]
[1643988051046,0.045,39671.0,39662.0,0.04208052]
[1643988051241,0.045,39671.0,39659.0,0.75645]
[1643988051242,1.09155791,39677.0,39670.0,0.04018052]
[1643988051441,0.000967,39678.0,39677.0,0.85]
[1643988051659,0.000967,39678.0,39677.0,1.51312822]
[1643988051851,0.438527,39683.0,39678.0,1.34957]
[1643988052047,0.438527,39683.0,39675.0,2.017]
[1643988052048,0.438527,39683.0,39679.0,5.0432]
[1643988052248,0.438527,39683.0,39679.0,3.98596]
[1643988052450,0.01660485,39685.0,39682.0,0.344355]
[1643988052649,0.16175007,39684.0,39683.0,0.79919]
[1643988052848,0.01660485,39685.0,39684.0,0.344355]
[1643988053048,0.1004,39689.0,39684.0,2.29050552]
[1643988053351,0.05,39701.0,39688.0,1.2]
[1643988053555,1.30522153,39712.0,39700.0,1.7989]
[1643988053853,0.302838,39733.0,39721.0,3.45945048]
[1643988053854,0.176884,39733.0,39721.0,3.45945048]
[1643988054053,0.176884,39733.0,39725.0,0.09614]
[1643988054258,0.01062315,39756.0,39744.0,3.68515388]
[1643988054553,0.54101731,39792.0,39756.0,1.10298758]
[1643988054554,0.01296351,39779.0,39756.0,1.10298758]
[1643988054748,0.0003,39792.0,39757.0,0.41288577]
[1643988054749,0.14376964,39769.0,39757.0,0.41288577]
[1643988054953,1.794,39758.0,39728.0,2.33856782]
[1643988055149,0.42491382,39743.0,39742.0,0.1]
[1643988055412,1.0,39759.0,39743.0,0.23664813]
[1643988055413,1.79968,39758.0,39743.0,0.23664813]
[1643988055611,1.0,39759.0,39743.0,0.00618815]
[1643988055612,0.5,39757.0,39743.0,0.00618815]
[1643988055813,1.0,39759.0,39723.0,0.1]
[1643988055814,0.16229602,39737.0,39730.0,0.27653322]
[1643988056010,1.0,39759.0,39738.0,0.48688806]
[1643988056011,0.96222028,39759.0,39738.0,0.48688806]
[1643988056214,0.41779662,39747.0,39739.0,0.27653322]
[1643988056412,0.41779662,39747.0,39727.0,0.05]
[1643988056413,0.27935623,39747.0,39730.0,0.1]
[1643988056612,0.27935623,39747.0,39717.0,0.05]
[1643988056613,0.09477914,39732.0,39717.0,0.05]
[1643988056816,1.843659,39746.0,39703.0,0.06289]
[1643988056817,0.343659,39730.0,39703.0,0.06289]
[1643988057118,0.27243152,39740.0,39729.0,0.03326447]
[1643988057412,0.59252088,39759.0,39739.0,0.03326447]
[1643988057611,0.49002088,39759.0,39758.0,0.0115]
[1643988057813,0.13551652,39759.0,39758.0,0.62818078]
[1643988058018,0.23541652,39759.0,39750.0,0.42653322]
[1643988058218,0.3156508,39750.0,39741.0,0.00549502]
[1643988058415,0.3156508,39750.0,39728.0,0.01858996]
[1643988058416,0.28342409,39742.0,39731.0,0.09780693]
[1643988058613,0.05,39749.0,39731.0,0.09780693]
[1643988059087,0.34080111,39742.0,39732.0,0.27653322]
[1643988059286,0.34080111,39742.0,39733.0,0.4791191]
[1643988059287,1.45,39741.0,39733.0,0.4791191]
[1643988059493,1.45,39741.0,39717.0,2.37353337]
[1643988059494,0.37837589,39726.0,39718.0,0.00823445]
[1643988059686,0.05,39730.0,39719.0,0.71284234]
[1643988059885,0.12881393,39725.0,39720.0,0.261077]
[1643988060086,0.025,39725.0,39710.0,0.4]
[1643988060287,0.025,39725.0,39724.0,0.0125]
[1643988060488,0.025,39725.0,39724.0,0.0115]
[1643988060688,0.51428661,39747.0,39719.0,1.1]
[1643988060885,4.10648121,39748.0,39720.0,0.27653322]
[1643988060886,0.05,39739.0,39720.0,0.27653322]
[1643988061086,0.35192891,39726.0,39720.0,1.11112318]
[1643988061285,0.05,39730.0,39721.0,0.75523]
[1643988061487,0.05,39730.0,39721.0,0.76094991]
[1643988061488,0.05,39726.0,39721.0,0.76094991]
[1643988061685,0.05,39726.0,39722.0,0.00523655]
[1643988061887,0.05,39726.0,39723.0,0.75523]
[1643988062089,0.01858996,39729.0,39724.0,0.00713779]
[1643988062286,8.996e-05,39729.0,39727.0,0.18814166]
[1643988062487,0.00381483,39756.0,39728.0,1.67653322]
[1643988062687,0.52334513,39786.0,39729.0,1.07755815]
[1643988062688,0.44689911,39780.0,39729.0,1.07755815]
[1643988062908,0.31449534,39753.0,39730.0,3.0]
[1643988063111,0.0380559,39762.0,39739.0,0.1]
[1643988063310,0.05,39763.0,39742.0,0.1]
[1643988063514,0.27653322,39762.0,39740.0,0.0885445]
[1643988063710,0.05,39743.0,39720.0,4.0]
[1643988063910,0.05,39743.0,39699.0,0.10955]
[1643988063911,1.8,39724.0,39699.0,0.10955]
[1643988064113,1.8,39724.0,39701.0,0.05]
[1643988064114,0.343725,39724.0,39701.0,0.05]
[1643988064310,0.0168603,39729.0,39723.0,0.01]
[1643988064510,0.08840826,39725.0,39708.0,0.05]
[1643988064815,0.0168603,39729.0,39708.0,0.09710641]
[1643988065009,0.03562826,39728.0,39700.0,0.05]
[1643988065209,0.0168603,39729.0,39699.0,0.00779963]
[1643988065210,0.0168603,39729.0,39708.0,0.05]
[1643988065410,0.0168603,39729.0,39708.0,0.05393252]
[1643988065710,0.0168603,39729.0,39699.0,0.00779963]
[1643988065711,0.03660357,39728.0,39709.0,0.75532]
[1643988065908,0.40663705,39730.0,39709.0,0.75532]
[1643988065909,0.002,39710.0,39709.0,0.75532]
[1643988066112,0.05,39742.0,39709.0,0.75532]
[1643988066113,0.052,39743.0,39709.0,1.03185322]
[1643988066313,0.7596,39752.0,39716.0,0.05]
[1643988066556,0.7596,39752.0,39733.0,0.00639126]
[1643988066557,0.00084731,39747.0,39733.0,0.00639126]
[1643988066758,0.04772376,39752.0,39746.0,0.05]
[1643988066957,3.26859683,39781.0,39733.0,0.13986469]
[1643988066958,2.56051083,39781.0,39752.0,0.09174469]
[1643988067155,2.56051083,39781.0,39762.0,0.0118671]
[1643988067156,0.1499,39776.0,39762.0,0.0118671]
[1643988067359,0.1499,39776.0,39763.0,0.74447]
[1643988067360,0.26993698,39774.0,39763.0,0.74447]
[1643988067555,0.05,39776.0,39763.0,0.96447]
[1643988067757,1.24770978,39783.0,39775.0,0.0483673]
[1643988067758,0.51997589,39783.0,39775.0,0.0483673]
[1643988067959,0.0999,39795.0,39766.0,0.4]
[1643988067960,0.951,39794.0,39791.0,0.19019175]
[1643988068156,0.04461426,39799.0,39791.0,0.36394]
[1643988068356,0.04461426,39799.0,39767.0,2.0]
[1643988068357,0.40166184,39785.0,39768.0,0.01769]
[1643988068556,0.40166184,39785.0,39758.0,0.04241995]
[1643988068557,0.55715591,39784.0,39758.0,0.04241995]
[1643988068762,0.0999,39769.0,39759.0,0.75271668]
[1643988068959,0.35476857,39744.0,39743.0,0.14012694]
[1643988069158,0.10309219,39767.0,39732.0,0.00187526]
[1643988069159,1.8,39766.0,39732.0,0.00187526]
[1643988069459,0.33238367,39740.0,39732.0,0.00187526]
[1643988069659,0.27653322,39758.0,39732.0,0.00187526]
[1643988069864,0.020662,39764.0,39731.0,0.00498335]
[1643988069865,0.34719522,39764.0,39731.0,0.00498335]
[1643988070057,0.34719522,39764.0,39719.0,0.29286526]
[1643988070058,0.34719522,39764.0,39741.0,0.16781114]
[1643988070345,0.03719331,39762.0,39725.0,0.2]
[1643988070525,0.03719331,39762.0,39709.0,0.4]
[1643988070526,1.0,39753.0,39727.0,0.00764272]
[1643988070721,3.46873617,39762.0,39723.0,0.04999999]
[1643988070722,0.31973322,39752.0,39723.0,0.04999999]
[1643988070923,0.31973322,39752.0,39719.0,0.13987468]
[1643988070924,0.31973322,39752.0,39742.0,0.75467]
[1643988071120,0.00078405,39743.0,39719.0,0.0548712]
[1643988071322,0.0432,39742.0,39730.0,0.04921595]
[1643988071523,0.04292302,39755.0,39739.0,0.00383549]
[1643988071725,0.45176144,39740.0,39739.0,0.00383549]
[1643988071922,0.45254549,39740.0,39739.0,0.75492]
[1643988072122,0.45254549,39740.0,39739.0,0.75337686]
[1643988072426,0.04312305,39755.0,39720.0,0.91196912]
[1643988072427,0.27231727,39755.0,39720.0,0.91196912]
[1643988072624,0.05,39749.0,39733.0,0.0077316]
[1643988072823,0.27653322,39748.0,39720.0,0.71196912]
[1643988073025,0.27653322,39748.0,39731.0,0.05]
[1643988073026,0.0432,39747.0,39731.0,0.05]
[1643988073224,0.0432,39747.0,39727.0,0.0050347]
[1643988073225,0.08720799,39747.0,39727.0,0.0050347]
[1643988073423,0.46808766,39736.0,39728.0,1.50992]
[1643988073624,0.46808766,39736.0,39728.0,1.51535194]
[1643988073825,0.46808766,39736.0,39728.0,1.51707929]
[1643988074047,0.05,39749.0,39720.0,0.03720648]
[1643988074048,0.27653322,39735.0,39720.0,0.03720648]
[1643988074251,0.04755423,39734.0,39721.0,0.75514]
[1643988074448,0.04755423,39734.0,39722.0,0.01841707]
[1643988074449,0.0432,39734.0,39722.0,0.01841707]
[1643988074652,0.04348677,39732.0,39722.0,0.29495029]
[1643988074851,0.05,39749.0,39722.0,0.29495029]
[1643988074852,0.07454354,39745.0,39723.0,0.75523]
[1643988075052,0.05,39749.0,39724.0,0.27653322]
[1643988075053,0.0407583,39744.0,39724.0,0.27653322]
[1643988075248,0.0407583,39744.0,39722.0,0.06841707]
[1643988075249,1.02461307,39743.0,39725.0,0.75519]
[1643988075450,0.3460872,39736.0,39725.0,0.75519]
[1643988075649,1.65,39729.0,39722.0,0.01841707]
[1643988075852,0.04277716,39724.0,39710.0,0.00102789]
[1643988076049,0.12191982,39723.0,39710.0,0.00102789]
[1643988076252,0.0982522,39713.0,39710.0,0.00102789]
[1643988076449,0.0982522,39713.0,39700.0,0.00102813]
[1643988076450,0.426212,39712.0,39700.0,0.00102813]
[1643988076650,0.05,39709.0,39702.0,0.75554]
[1643988076853,2.79,39707.0,39681.0,3.81804197]
[1643988077056,0.03658963,39709.0,39681.0,0.09676]
[1643988077057,0.99,39691.0,39681.0,0.09676]
[1643988077357,0.03770709,39683.0,39681.0,0.09676]
[1643988077554,0.0432,39685.0,39681.0,0.33859]
[1643988077816,0.0432,39691.0,39682.0,0.09676]
[1643988078017,0.988,39689.0,39684.0,0.09672]
[1643988078217,0.9448,39685.0,39667.0,0.27653322]
[1643988078414,0.343725,39686.0,39685.0,0.34873]
[1643988078614,0.0432,39689.0,39685.0,0.49453254]
[1643988078615,0.03430557,39689.0,39685.0,0.49453254]
[1643988078812,0.21300137,39720.0,39685.0,0.49453254]
[1643988079019,0.252018,39744.0,39698.0,0.38223117]
[1643988079020,0.04833428,39715.0,39698.0,0.38223117]
[1643988079216,0.11472414,39723.0,39699.0,0.25189]
[1643988079217,0.04525571,39714.0,39699.0,0.25189]
[1643988079414,0.5132,39718.0,39700.0,0.14003]
[1643988079415,0.84486504,39712.0,39700.0,0.14003]
[1643988079615,0.09561782,39708.0,39701.0,0.25188]
[1643988079814,0.47,39718.0,39705.0,0.05095735]
[1643988080015,0.47,39718.0,39706.0,0.25185]
[1643988080016,0.02404265,39716.0,39706.0,0.25185]
[1643988080212,0.02404265,39712.0,39707.0,0.75553]
[1643988080420,0.28163404,39721.0,39707.0,0.75553]
[1643988080421,0.05,39747.0,39710.0,0.05]
[1643988080616,0.592,39763.0,39710.0,0.05]
[1643988080617,0.05,39732.0,39723.0,0.09666]